bitfinex-derivatives/quotes_ETHF0:USTF0_20260113
["timestamp","ask_amount","ask_price","bid_price","bid_amount"]
[1768303963603,0.14118873,3137.5,3136.6,1.08563009]
[1768303964303,1.08563009,3137.4,3136.6,1.08563009]
[1768303966007,1.08563009,3137.2,3136.5,0.15958]
[1768303967002,0.13509902,3137.3,3136.5,1.24521009]
[1768303967808,0.13509902,3137.3,3136.5,0.15958]
[1768303970707,0.13509902,3137.3,3136.5,1.24521009]
[1768303978010,1.08563009,3137.5,3136.5,1.24521009]
[1768303978211,1.22072911,3137.7,3136.7,1.08563009]
[1768303981413,0.13509902,3137.7,3136.5,1.24491294]
[1768303983910,0.13509902,3137.7,3136.7,1.08533294]
[1768303998416,0.13509902,3137.7,3136.5,0.15958]
[1768303998825,0.13509902,3137.7,3136.5,1.24491294]
[1768303999424,0.13509902,3137.7,3136.5,0.15958]
[1768304000939,0.13509902,3137.7,3136.5,1.24491294]
[1768304007449,0.13509902,3137.7,3136.5,0.15958]
[1768304010438,0.13509902,3137.7,3136.5,1.24491294]
[1768304012141,0.13509902,3137.7,3136.5,0.15958]
[1768304013751,1.08533294,3137.6,3136.5,0.15958]
[1768304013941,0.13587772,3137.5,3136.5,0.15958]
[1768304018655,0.1441917,3137.2,3136.1,4.01890214]
[1768304018952,0.1441917,3137.0,3135.9,5.45751214]
[1768304019749,0.1441917,3137.0,3135.9,4.17851214]
[1768304020556,0.1441917,3137.0,3135.9,0.15961]
[1768304021155,0.1441917,3137.0,3136.0,1.08533294]
[1768304021558,0.1441917,3137.0,3135.9,0.15961]
[1768304035755,0.1441917,3136.8,3135.9,0.15961]
[1768304041265,1.08533294,3137.0,3135.8,0.00379685]
[1768304041266,0.1441917,3136.5,3135.8,0.00379685]
[1768304041567,0.1441917,3136.2,3135.8,0.00379685]
[1768304042072,1.08623336,3136.5,3135.8,0.00379685]
[1768304042468,1.23042506,3136.5,3135.8,0.00379685]
[1768304042774,1.23042506,3136.3,3135.8,0.00379685]
[1768304043455,0.1441917,3136.3,3135.8,0.00379685]
[1768304045571,1.2289539,3136.1,3135.1,4.01890214]
[1768304045765,1.08623336,3135.9,3135.1,5.30090214]
[1768304045962,1.08623336,3135.9,3135.1,1.282]
[1768304046371,0.14272054,3136.0,3135.1,1.282]
[1768304046675,0.14272054,3136.0,3135.2,1.08623336]
[1768304053579,0.14272054,3136.0,3135.1,0.0038322]
[1768304053879,0.14272054,3136.0,3135.2,1.08623336]
[1768304058175,1.2289539,3136.0,3135.2,1.08623336]
[1768304062582,1.2289539,3136.0,3135.1,1.09006556]
[1768304062877,0.14420973,3135.9,3135.1,1.09006556]
[1768304065782,1.08623336,3135.8,3135.1,0.0038322]
[1768304066682,1.23044309,3135.9,3135.1,0.0038322]
[1768304072707,0.14420973,3135.9,3135.1,1.09006556]
[1768304072912,0.14420973,3135.9,3135.3,1.08623336]
[1768304073610,0.14420973,3135.9,3135.1,1.09006556]
[1768304077308,0.14420973,3135.9,3135.4,1.08623336]
[1768304077707,0.13397201,3136.3,3135.8,1.08623336]
[1768304077905,0.13397201,3136.3,3135.6,1.08623336]
[1768304082222,1.22020537,3136.3,3135.4,1.08623336]
[1768304082413,0.13397201,3136.2,3135.4,1.08623336]
[1768304082916,1.08623336,3135.9,3135.1,0.0038322]
[1768304083113,0.13397201,3136.0,3135.1,0.0038322]
[1768304083314,0.13397201,3136.0,3135.2,1.08623336]
[1768304090230,1.22020537,3136.0,3135.2,1.08623336]
[1768304092435,0.13397201,3136.0,3135.2,1.08623336]
[1768304092728,1.08623336,3136.2,3135.2,1.08623336]
[1768304093229,1.22020537,3136.2,3135.2,1.08623336]
[1768304093726,0.13397201,3137.2,3135.8,1.08623336]
[1768304093922,0.13397201,3136.6,3135.8,1.08623336]
[1768304095826,1.22020537,3137.0,3136.0,1.08623336]
[1768304096128,1.08623336,3136.8,3136.0,1.08623336]
[1768304096726,2.17246672,3136.2,3135.1,4.02273434]
[1768304096921,1.08623336,3135.6,3135.1,4.02273434]
[1768304097128,1.08970712,3135.6,3135.1,0.0038322]
[1768304097328,1.22367913,3135.6,3135.1,0.0038322]
[1768304098131,0.13744577,3135.6,3135.1,0.0038322]
[1768304098318,0.13744577,3135.6,3135.1,1.09006556]
[1768304099624,0.13744577,3135.6,3135.1,0.0038322]
[1768304100627,0.13744577,3135.6,3134.4,0.15969]
[1768304100833,0.13397201,3135.5,3134.7,1.08623336]
[1768304101733,0.13397201,3135.5,3134.7,1.08943276]
[1768304102136,0.13397201,3135.5,3134.7,0.0031994]
[1768304102534,0.13397201,3135.5,3134.8,1.08623336]
[1768304103334,0.13397201,3135.5,3134.7,0.0031994]
[1768304111431,0.00347376,3135.6,3134.7,0.0031994]
[1768304111630,0.00347376,3135.6,3134.9,1.08661201]
[1768304111833,0.14313959,3135.9,3134.9,1.08661201]
[1768304112841,0.14586821,3135.9,3134.9,1.08661201]
[1768304113632,0.14586821,3135.9,3135.2,1.08661201]
[1768304113830,0.00272862,3135.9,3135.2,1.08661201]
[1768304114030,0.14313959,3136.3,3135.2,1.08661201]
[1768304114333,0.14313959,3136.3,3135.0,2.53527201]
[1768304114932,0.14313959,3136.3,3135.0,1.44866]
[1768304114933,0.14313959,3136.1,3135.0,1.44866]
[1768304117542,0.14313959,3136.1,3135.0,0.15966]
[1768304124855,0.14144949,3135.9,3134.7,0.0031994]
[1768304133652,0.14144949,3135.9,3134.7,1.08981141]
[1768304133849,0.14144949,3135.9,3135.0,1.08661201]
[1768304136963,0.14144949,3135.9,3134.8,0.15967]
[1768304151679,0.14144949,3135.9,3134.9,1.24627201]
[1768304152975,0.14144949,3135.9,3135.0,0.15966]
[1768304153778,0.14144949,3135.9,3135.2,0.15965]
[1768304156779,0.14242697,3135.6,3134.7,0.1628794]
[1768304163379,0.14242697,3135.5,3134.7,1.24960962]
[1768304175689,0.00246153,3136.3,3135.2,0.15965]
[1768304175991,1.08673022,3136.9,3136.0,1.08673022]
[1768304176175,2.01331044,3136.8,3135.8,1.08673022]
[1768304176380,1.08673022,3136.6,3135.6,1.08673022]
[1768304176580,1.08673022,3136.7,3135.8,1.08673022]
[1768304176786,1.08673022,3137.4,3135.5,0.15963]
[1768304176994,1.31675299,3137.3,3135.5,0.15963]
[1768304177181,1.31675242,3137.2,3135.5,0.15963]
[1768304177382,0.92615381,3137.1,3135.5,0.15963]
[1768304177684,0.00314871,3137.4,3135.2,1.297]
[1768304177888,0.13748397,3137.3,3136.6,1.08673022]
[1768304178075,0.13748397,3137.3,3136.5,1.08673022]
[1768304178280,1.22421419,3137.3,3136.3,1.08673022]
[1768304180289,1.22421419,3137.3,3136.2,0.1596]
[1768304180290,1.22421419,3137.3,3136.2,1.24633022]
[1768304180486,1.08673022,3137.1,3136.2,1.24633022]
[1768304180691,1.22421419,3137.3,3136.2,1.24633022]
[1768304182086,0.13748397,3137.2,3136.2,0.1596]
[1768304182290,1.08673022,3136.8,3136.2,0.1596]
[1768304182593,1.22421419,3137.0,3136.2,0.1596]
[1768304183284,0.13748397,3137.0,3136.2,1.24633022]
[1768304183487,1.2273629,3137.4,3136.4,1.08673022]
[1768304185586,1.08673022,3137.2,3136.3,1.08673022]
[1768304186089,1.08673022,3137.2,3136.2,1.24633022]
[1768304186482,1.01592326,3137.2,3136.2,1.24633022]
[1768304187391,1.15340723,3137.2,3136.2,1.24633022]
[1768304188295,0.13748397,3137.2,3136.2,1.24633022]
[1768304188596,1.08673022,3136.9,3136.2,0.1596]
[1768304189598,0.13748397,3137.0,3136.2,1.24633022]
[1768304192492,0.13748397,3137.0,3136.2,0.1596]
[1768304192695,1.08673022,3136.5,3136.0,1.297]
[1768304192896,1.08673022,3136.7,3135.8,1.08673022]
[1768304197003,1.08673022,3136.4,3135.5,0.15963]
[1768304197205,1.08673022,3136.4,3135.5,1.24636022]
[1768304197410,0.13995526,3136.6,3135.5,1.24636022]
[1768304199005,1.08673022,3136.5,3135.5,1.24636022]
[1768304199898,0.13995526,3136.5,3135.5,1.24636022]
[1768304200201,1.22668548,3136.5,3135.5,1.24636022]
[1768304200400,0.13995526,3136.5,3135.5,1.24636022]
[1768304200603,0.13995526,3136.5,3135.7,1.08673022]
[1768304207718,0.13995526,3136.5,3135.6,1.08673022]
[1768304214425,0.13995526,3136.5,3135.6,1.24636022]
[1768304224733,0.13465835,3137.0,3135.6,1.24636022]
[1768304224932,1.08673022,3136.7,3135.6,1.24636022]
[1768304225327,1.22062973,3137.0,3135.6,0.15963]
[1768304225627,0.89789735,3136.9,3135.7,0.15962]
[1768304225924,1.22062973,3137.0,3135.7,0.15962]
[1768304226124,0.89789719,3136.9,3135.7,0.15962]
[1768304226330,1.22062973,3137.0,3135.7,0.15962]
[1768304226522,0.89795654,3136.9,3135.7,0.15962]
[1768304226723,1.22062973,3137.0,3135.7,0.15962]
[1768304227039,1.08597138,3137.2,3135.8,0.15962]
[1768304227231,0.89787865,3137.1,3135.9,1.08597138]
[1768304227533,0.89787865,3137.0,3135.8,0.15962]
[1768304227731,1.08597138,3137.2,3135.8,0.15962]
[1768304227928,0.8981092,3137.1,3135.9,1.08597138]
[1768304228126,0.8981092,3137.0,3135.8,0.15962]
[1768304228328,1.08597138,3137.2,3135.8,0.15962]
[1768304228525,0.89807826,3137.1,3135.8,0.15962]
[1768304228722,0.89807826,3137.0,3135.8,0.15962]
[1768304228927,1.22062973,3137.2,3135.8,0.15962]
[1768304229127,0.89807692,3137.1,3135.8,0.15962]
[1768304229333,0.89807692,3137.0,3135.8,0.15962]
[1768304229538,1.22062973,3137.2,3135.8,0.15962]
[1768304229734,0.89804128,3137.1,3135.8,0.15962]
[1768304229934,0.89804128,3137.0,3135.8,0.15962]
[1768304230135,1.22062973,3137.2,3135.8,0.15962]
[1768304230336,0.89801012,3137.1,3135.8,0.15962]
[1768304230637,0.89801012,3137.0,3135.9,1.08597138]
[1768304230940,1.22062973,3137.2,3135.9,1.08597138]
[1768304231237,0.89801012,3137.1,3135.9,1.08597138]
[1768304231435,1.22062973,3137.2,3135.9,1.08597138]
[1768304231634,0.89798362,3137.1,3135.9,1.08597138]
[1768304231835,1.22062973,3137.2,3135.9,1.08597138]
[1768304232039,0.89798362,3137.1,3135.9,1.08597138]
[1768304232336,1.22062973,3137.2,3135.9,1.08597138]
[1768304232536,0.89795943,3137.1,3135.9,1.08597138]
[1768304232738,1.22062973,3137.2,3135.9,1.08597138]
[1768304232941,0.89795807,3137.1,3135.9,1.08597138]
[1768304233243,1.22062973,3137.2,3135.9,1.08597138]
[1768304233431,0.89792214,3137.1,3135.9,1.08597138]
[1768304233632,1.22062973,3137.2,3135.9,1.08597138]
[1768304233834,0.89792214,3137.1,3135.9,1.08597138]
[1768304234136,1.22062973,3137.2,3135.9,1.08597138]
[1768304234438,0.89789156,3137.1,3135.9,1.08597138]
[1768304234640,1.22062973,3137.2,3135.9,1.08597138]
[1768304234829,0.89789156,3137.1,3135.9,1.08597138]
[1768304235030,1.22062973,3137.2,3135.9,1.08597138]
[1768304235230,0.89787279,3137.1,3135.9,1.08597138]
[1768304235428,1.22062973,3137.2,3135.9,1.08597138]
[1768304235632,0.89786552,3137.1,3135.9,1.08597138]
[1768304235928,1.22062973,3137.2,3135.9,1.08597138]
[1768304236131,0.89785048,3137.1,3135.9,1.08597138]
[1768304236431,0.13465835,3137.2,3135.9,1.08597138]
[1768304236631,0.8978429,3137.1,3135.9,1.08597138]
[1768304236832,0.13465835,3137.2,3135.9,1.08597138]
[1768304237034,0.8978429,3137.1,3135.9,1.08597138]
[1768304237332,0.13465835,3137.2,3135.9,1.08597138]
[1768304237533,0.89782345,3137.1,3135.9,1.08597138]
[1768304237732,0.13465835,3137.2,3135.9,1.08597138]
[1768304237942,0.89782345,3137.1,3135.9,1.08597138]
[1768304238138,0.13465835,3137.2,3135.9,1.08597138]
[1768304238333,0.89780665,3137.1,3135.9,1.08597138]
[1768304238533,0.13465835,3137.2,3135.9,1.08597138]
[1768304238740,0.89780665,3137.1,3135.9,1.08597138]
[1768304239038,0.13465835,3137.2,3135.9,1.08597138]
[1768304239240,0.89779958,3137.1,3135.9,1.08597138]
[1768304239541,0.13465835,3137.2,3135.9,1.08597138]
[1768304239737,0.89779288,3137.1,3135.9,1.08597138]
[1768304239939,0.13465835,3137.2,3135.9,1.08597138]
[1768304240144,0.89778788,3137.1,3135.9,1.08597138]
[1768304240343,0.13465835,3137.2,3135.9,1.08597138]
[1768304240544,0.89778156,3137.1,3135.9,1.08597138]
[1768304240730,0.13465835,3137.2,3135.9,1.08597138]
[1768304240935,0.89778186,3137.1,3135.9,1.08597138]
[1768304241232,0.13465835,3137.2,3135.9,1.08597138]
[1768304241437,0.89777253,3137.1,3135.9,1.08597138]
[1768304241743,0.13465835,3137.2,3135.9,1.08597138]
[1768304241944,0.89777253,3137.1,3135.9,1.08597138]
[1768304242240,0.13465835,3137.2,3135.9,1.08597138]
[1768304242441,0.89776554,3137.1,3135.9,1.08597138]
[1768304242644,0.13465835,3137.2,3135.9,1.08597138]
[1768304242842,0.89776559,3137.1,3135.9,1.08597138]
[1768304243042,0.13465835,3137.2,3135.9,1.08597138]
[1768304243244,0.89776503,3137.1,3135.9,1.08597138]
[1768304243443,0.13465835,3137.2,3135.9,1.08597138]
[1768304243648,0.89776004,3137.1,3135.9,1.08597138]
[1768304243851,0.13465835,3137.2,3135.9,1.08597138]
[1768304244147,0.89776004,3137.1,3135.9,1.08597138]
[1768304244350,0.13465835,3137.2,3135.9,1.08597138]
[1768304244551,0.89775666,3137.1,3135.9,1.08597138]
[1768304244746,0.13465835,3137.2,3135.9,1.08597138]
[1768304244941,0.89775666,3137.1,3135.9,1.08597138]
[1768304245142,0.13465835,3137.2,3135.9,1.08597138]
[1768304245342,0.89775633,3137.1,3135.9,1.08597138]
[1768304245542,0.13465835,3137.2,3135.9,1.08597138]
[1768304245746,0.89775633,3137.1,3135.9,1.08597138]
[1768304245949,0.13465835,3137.2,3135.9,1.08597138]
[1768304246246,0.89775633,3137.1,3135.9,1.08597138]
[1768304246447,0.13465835,3137.2,3135.9,1.08597138]
[1768304246647,0.14356059,3137.0,3135.8,0.15962]
[1768304248256,0.14356059,3137.0,3135.9,1.08597138]
[1768304248453,0.3062493,3137.4,3135.9,1.08597138]
[1768304248756,1.28869817,3137.3,3135.9,1.08597138]
[1768304248944,0.89776873,3137.2,3135.9,1.08597138]
[1768304249144,0.3062493,3137.4,3135.9,1.08597138]
[1768304249349,1.28861441,3137.3,3135.9,1.08597138]
[1768304249651,0.89771094,3137.2,3135.9,1.08597138]
[1768304249853,0.3062493,3137.4,3135.9,1.08597138]
[1768304250048,0.89770111,3137.3,3136.1,1.08597138]
[1768304250248,0.89770111,3137.2,3136.1,1.08597138]
[1768304250445,0.3062493,3137.4,3136.1,1.08597138]
[1768304250640,0.1467093,3137.4,3136.4,1.08597138]
[1768304250850,0.00314871,3137.4,3136.4,1.08597138]
[1768304251150,0.00314871,3137.4,3136.2,1.08597138]
[1768304251649,0.14356059,3137.2,3136.1,0.1596]
[1768304253959,0.00314871,3137.4,3136.1,0.1596]
[1768304254154,0.1467093,3137.4,3136.1,0.1596]
[1768304256259,0.1467093,3137.4,3136.1,1.24557138]
[1768304259560,0.1467093,3137.4,3136.1,0.1596]
[1768304259761,0.14416996,3137.1,3135.8,2.85452773]
[1768304259951,0.14416996,3137.1,3135.7,4.16252773]
[1768304261968,0.14416996,3136.8,3135.7,4.16252773]
[1768304262159,0.14416996,3136.8,3135.7,1.308]
[1768304281696,1.08597138,3137.1,3135.7,1.308]
[1768304282395,1.08597138,3136.9,3135.7,1.308]
[1768304282990,1.23014134,3137.1,3135.7,1.308]
[1768304283197,0.14416996,3137.1,3135.7,2.39397138]
[1768304284499,1.08597138,3137.0,3135.7,2.39397138]
[1768304286100,0.14416996,3137.1,3135.7,2.39397138]
[1768304286297,0.00314871,3137.4,3136.0,1.08597138]
[1768304286598,0.00314871,3137.4,3136.4,1.08597138]
[1768304287392,0.00314871,3137.4,3136.6,1.08542102]
[1768304287701,0.00314871,3137.4,3136.8,1.08542102]
[1768304288793,1.08542102,3137.7,3136.8,1.08542102]
[1768304289901,1.08939202,3137.7,3136.8,1.08542102]
[1768304290296,0.003971,3137.7,3136.8,1.08542102]
[1768304290706,1.23045137,3138.3,3137.3,1.08542102]
[1768304290898,1.08542102,3138.1,3137.3,1.08542102]
[1768304291202,1.08542102,3138.1,3137.1,1.08542102]
[1768304291803,1.08788537,3138.1,3137.1,1.08831384]
[1768304292004,1.08542102,3137.9,3137.1,1.08831384]
[1768304293302,1.08542102,3137.9,3137.1,0.00289282]
[1768304294703,1.08542102,3137.7,3137.1,0.00289282]
[1768304296202,1.22489772,3137.3,3136.4,2.85452773]
[1768304296401,1.08542102,3137.0,3136.1,1.08542102]
[1768304297197,1.08542102,3137.1,3136.1,1.08879452]
[1768304297412,1.08542102,3137.1,3136.3,1.08542102]
[1768304298314,1.08542102,3137.1,3136.1,1.08879452]
[1768304301913,1.08542102,3137.0,3136.1,1.08879452]
[1768304302714,1.22489772,3137.0,3136.1,0.0033735]
[1768304305401,1.22489772,3137.0,3136.1,1.08879452]
[1768304312212,1.08542102,3136.8,3136.1,0.0033735]
[1768304312518,1.08542102,3136.3,3135.4,0.15964]
[1768304313323,1.08542102,3136.3,3135.4,0.16366224]
[1768304313523,1.08542102,3136.3,3135.5,1.08542102]
[1768304314420,0.1394767,3136.7,3135.5,1.08542102]
[1768304314628,1.08542102,3136.6,3135.7,1.08542102]
[1768304316819,0.14369526,3136.8,3135.7,1.08542102]
[1768304317026,1.08542102,3136.6,3135.7,1.08542102]
[1768304320530,0.14369526,3136.8,3135.7,1.08542102]
[1768304320724,1.08542102,3136.6,3135.7,1.08542102]
[1768304322025,0.14369526,3137.2,3135.7,1.08542102]
[1768304322232,0.14369526,3137.2,3136.5,1.08542102]
[1768304322432,1.22911628,3137.2,3136.3,1.08542102]
[1768304323533,1.22911628,3137.2,3136.2,1.08542102]
[1768304328536,0.14369526,3137.2,3136.2,1.08542102]
[1768304328729,1.08542102,3137.1,3136.2,1.08542102]
[1768304329934,0.14369526,3137.6,3136.6,1.08542102]
[1768304330139,1.08542102,3137.5,3136.6,1.08542102]
[1768304330739,1.08542102,3137.8,3136.8,1.08542102]
[1768304331037,1.08542102,3137.6,3136.8,1.08542102]
[1768304331239,1.08542102,3137.4,3136.6,1.08542102]
[1768304333236,1.08542102,3137.6,3136.6,1.08542102]
[1768304334334,1.08542102,3137.6,3136.4,0.15959]
[1768304334533,1.08542102,3137.6,3136.8,1.08542102]
[1768304336234,1.22911628,3137.9,3137.0,1.08542102]
[1768304339840,1.08542102,3137.7,3136.8,1.08542102]
[1768304340140,0.14369526,3137.9,3136.8,1.08542102]
[1768304340343,1.08542102,3137.7,3136.8,1.08542102]
[1768304340642,0.14369526,3137.9,3136.8,1.08542102]
[1768304340940,1.08542102,3137.7,3136.8,1.08542102]
[1768304341343,1.08542102,3137.7,3136.5,0.15958]
[1768304341543,1.08542102,3137.7,3136.8,1.08542102]
[1768304343946,1.08542102,3137.3,3136.4,1.08542102]
[1768304345243,1.08542102,3136.7,3136.1,2.85452773]
[1768304345445,1.08542102,3137.3,3136.0,0.15961]
[1768304345446,1.08542102,3136.9,3136.0,0.15961]
[1768304345744,1.08542102,3136.9,3135.8,3.93994875]
[1768304345942,1.08542102,3136.9,3135.8,1.08542102]
[1768304346347,1.08542102,3136.9,3136.0,1.08542102]
[1768304347347,0.13615363,3137.0,3135.7,1.315]
[1768304347348,0.13615363,3137.0,3135.8,1.08581774]
[1768304347649,0.13615363,3136.9,3135.6,2.85452773]
[1768304347850,0.13615363,3136.9,3135.5,3.94034547]
[1768304349040,0.13615363,3136.9,3135.5,2.85452773]
[1768304349241,0.13615363,3136.6,3135.4,1.32002224]
[1768304350844,0.13615363,3136.5,3135.4,1.32002224]
[1768304356256,0.13615363,3136.5,3135.5,1.08581774]
[1768304358758,1.21839514,3136.8,3135.5,1.08581774]
[1768304359555,1.21839514,3136.8,3135.4,1.32002224]
[1768304359556,1.08581774,3136.6,3135.4,0.00402224]
[1768304359864,1.21839514,3136.2,3135.4,0.00402224]
[1768304360155,0.1325774,3136.2,3135.4,0.00402224]
[1768304360555,1.21839514,3136.6,3135.4,0.00402224]
[1768304360860,0.1325774,3136.5,3135.4,1.08983998]
[1768304365459,0.1325774,3136.5,3135.4,0.00402224]
[1768304375065,0.1325774,3136.5,3135.7,1.08581774]
[1768304375265,0.1325774,3136.5,3135.5,1.08581774]
[1768304380162,0.1325774,3136.5,3135.4,1.08983998]
[1768304381367,1.22725689,3136.9,3135.4,1.08983998]
[1768304381568,1.04041034,3136.8,3135.4,1.08983998]
[1768304381766,0.14143915,3136.8,3135.4,1.08983998]
[1768304383171,0.14143915,3136.8,3135.4,1.24947998]
[1768304383367,0.14143915,3136.8,3135.6,1.08581774]
[1768304383759,0.14143915,3136.8,3135.4,5.42400771]
[1768304384269,0.14143915,3136.8,3135.4,4.10400771]
[1768304384570,0.14143915,3136.8,3135.4,5.42400771]
[1768304384773,1.08581774,3136.7,3135.4,4.33818997]
[1768304384976,1.22725689,3136.7,3135.4,4.33818997]
[1768304387372,0.14143915,3136.7,3135.5,1.08581774]
[1768304391678,0.14143915,3136.7,3135.4,4.33818997]
[1768304392673,1.08581774,3136.6,3135.4,4.33818997]
[1768304392878,0.14143915,3136.5,3135.4,4.33818997]
[1768304398578,1.08581774,3136.8,3135.5,1.08581774]
[1768304398881,0.14143915,3136.9,3135.5,1.08581774]
[1768304399185,0.14143915,3136.9,3135.7,1.08581774]
[1768304399380,0.14143915,3136.9,3135.5,1.24544774]
[1768304401487,0.14143915,3136.9,3135.5,0.15963]
[1768304401683,0.14143915,3136.7,3135.5,0.15963]
[1768304404485,1.22725689,3136.4,3135.4,2.85854997]
[1768304404790,0.14144671,3136.3,3135.4,0.00402224]
[1768304407401,1.0863352,3136.2,3135.4,0.00402224]
[1768304410308,1.0863352,3136.0,3135.4,0.00402224]
[1768304410500,0.14144671,3135.5,3135.0,4.01890214]
[1768304410697,0.14144671,3135.5,3134.7,3.94086293]
[1768304411597,0.14144671,3135.5,3134.7,0.00386492]
[1768304411598,1.23131633,3135.5,3134.7,0.00386492]
[1768304415705,1.22051067,3135.3,3134.7,0.00386492]
[1768304416310,0.13417547,3135.3,3134.7,0.00386492]
[1768304419814,1.22051067,3135.3,3134.7,0.00386492]
[1768304420012,0.13417547,3135.3,3134.7,0.00386492]
[1768304420310,1.22051067,3135.3,3134.7,0.00386492]
[1768304421214,0.13417547,3135.3,3134.7,0.00386492]
[1768304421910,0.13417547,3135.3,3134.8,1.0863352]
[1768304422116,0.00353442,3135.5,3134.8,1.0863352]
[1768304423317,0.00353442,3135.5,3135.0,1.0863352]
[1768304424513,0.00353442,3135.5,3134.9,1.0863352]
[1768304425813,0.00353442,3135.5,3135.1,1.0863352]
[1768304426008,0.13417547,3136.2,3135.3,1.0863352]
[1768304426317,0.13417547,3136.2,3135.1,1.0863352]
[1768304426318,1.0863352,3135.9,3135.1,1.0863352]
[1768304427005,1.08922892,3135.9,3135.1,1.0863352]
[1768304428208,0.00289372,3135.9,3135.1,1.0863352]
[1768304428615,0.00289372,3135.9,3135.3,1.0863352]
[1768304429509,0.00289372,3135.9,3135.1,1.0863352]
[1768304432218,0.00289372,3135.9,3135.3,1.0863352]
[1768304432405,0.00289372,3135.9,3135.5,1.0863352]
[1768304432611,0.13417547,3136.2,3135.5,1.0863352]
[1768304433010,0.13417547,3136.2,3135.4,1.0863352]
[1768304433518,0.13776518,3136.2,3135.4,1.0863352]
[1768304433916,0.13776518,3136.2,3135.3,1.0863352]
[1768304435012,0.13776518,3136.2,3135.0,1.0863352]
[1768304435214,0.00358971,3136.2,3135.7,1.0863352]
[1768304435417,1.2264119,3136.7,3135.7,1.0863352]
[1768304435918,1.0863352,3136.5,3135.7,1.0863352]
[1768304436212,0.1400767,3136.7,3135.9,1.0863352]
[1768304436415,1.22904057,3136.7,3135.7,1.0863352]
[1768304440923,1.0863352,3136.5,3135.7,1.0863352]
[1768304441323,1.0863352,3136.5,3135.5,1.0863352]
[1768304442324,0.14270537,3136.7,3135.5,1.0863352]
[1768304442526,1.0863352,3136.5,3135.5,1.0863352]
[1768304446628,1.0863352,3136.5,3135.7,1.0863352]
[1768304446826,1.22904057,3136.7,3135.7,1.0863352]
[1768304447030,0.00262867,3136.7,3136.1,1.0863352]
[1768304447250,0.00262867,3136.7,3135.9,1.0863352]
[1768304448227,0.00262867,3136.7,3135.5,0.15963]
[1768304448430,0.00262867,3136.7,3135.8,1.0863352]
[1768304449534,0.00262867,3136.7,3136.0,1.0863352]
[1768304450633,0.00262867,3136.7,3136.2,1.0863352]
[1768304450832,1.0863352,3137.0,3136.2,1.0863352]
[1768304451634,0.1400767,3137.1,3136.2,1.0863352]
[1768304451834,0.14358764,3137.1,3136.2,1.0863352]
[1768304452128,0.00351094,3137.1,3136.4,1.0863352]
[1768304452630,0.00351094,3137.1,3136.3,1.0863352]
[1768304454538,0.00351094,3137.1,3136.1,1.0863352]
[1768304454748,1.0863352,3137.0,3136.1,1.0863352]
[1768304455034,1.0863352,3136.8,3135.9,1.0863352]
[1768304463246,0.1400767,3137.0,3135.9,1.0863352]
[1768304463543,1.0863352,3136.8,3135.9,1.0863352]
[1768304465241,0.1400767,3137.0,3135.9,1.0863352]
[1768304465443,1.0863352,3136.9,3135.9,1.0863352]
[1768304468244,1.0863352,3136.9,3135.7,3.01414773]
[1768304468543,1.0863352,3136.9,3136.0,1.0863352]
[1768304469343,0.1400767,3137.0,3135.7,4.10002066]
[1768304470348,0.1400767,3137.0,3135.7,3.01414773]
[1768304470642,0.1400767,3137.0,3135.7,4.10002066]
[1768304471342,0.1400767,3137.0,3135.7,1.24549293]
[1768304471640,1.08587293,3136.5,3135.4,2.85452773]
[1768304471838,1.08587293,3136.5,3135.3,3.01416773]
[1768304472039,0.14501012,3136.7,3135.3,4.10004066]
[1768304472339,0.14501012,3136.7,3135.3,3.01416773]
[1768304472739,0.14501012,3136.7,3135.3,4.10004066]
[1768304474045,0.14501012,3136.7,3135.5,1.08587293]
[1768304474247,0.00351094,3137.1,3135.7,1.08587293]
[1768304474248,1.23439399,3137.1,3135.7,1.08587293]
[1768304474446,1.04247456,3137.0,3135.7,1.08587293]
[1768304474645,0.14501012,3137.0,3135.7,1.08587293]
[1768304481044,0.14501012,3137.0,3135.4,3.01416773]
[1768304481250,0.14501012,3137.0,3135.6,1.08587293]
[1768304481448,1.08587293,3136.9,3135.6,1.08587293]
[1768304481955,1.23114342,3136.9,3135.6,1.08587293]
[1768304483057,0.14527049,3136.9,3135.6,1.08587293]
[1768304483748,0.00351094,3137.1,3135.8,1.08587293]
[1768304490477,1.08938387,3137.1,3135.8,1.08587293]
[1768304491477,0.00351094,3137.1,3135.8,1.08587293]
[1768304491775,0.00351094,3137.1,3136.0,1.08587293]
[1768304493679,0.14878143,3137.1,3135.9,0.15961]
[1768304493870,0.14527049,3137.0,3135.8,2.85452773]
[1768304494181,1.08587293,3136.9,3135.6,2.85452773]
[1768304494579,1.08587293,3136.9,3135.6,3.94040066]
[1768304494771,0.14527049,3137.0,3135.6,3.94040066]
[1768304496374,1.08587293,3136.9,3135.6,1.08587293]
[1768304496578,1.22839715,3136.6,3135.4,6.87342987]
[1768304496778,1.22839715,3136.6,3135.4,2.85452773]
[1768304499780,1.22839715,3136.3,3135.3,2.85452773]
[1768304499984,0.14252422,3136.2,3135.1,2.85452773]
[1768304500576,0.14252422,3136.2,3135.0,2.85452773]
[1768304504380,0.14252422,3136.2,3134.9,0.15966]
[1768304506386,0.14252422,3136.2,3135.0,1.24553293]
[1768304506586,1.08587293,3136.5,3135.0,1.24553293]
[1768304506791,1.22839715,3136.5,3135.0,1.24553293]
[1768304507987,0.14252422,3136.4,3135.0,1.24553293]
[1768304509094,1.22839715,3136.3,3135.0,1.24553293]
[1768304509284,1.22839715,3136.3,3135.0,0.15966]
[1768304516191,0.14252422,3136.2,3135.0,0.15966]
[1768304531297,1.08652532,3135.9,3135.0,1.24618532]
[1768304531802,1.08652532,3135.7,3134.8,1.08652532]
[1768304534202,1.08652532,3135.9,3134.8,1.08652532]
[1768304534800,1.08652532,3135.7,3134.7,0.00386492]
[1768304535005,1.08652532,3135.7,3134.8,1.08652532]
[1768304536007,1.08652532,3135.7,3134.7,0.00386492]
[1768304536300,1.08652532,3135.7,3134.8,1.08652532]
[1768304537306,0.1378926,3136.3,3135.0,1.08652532]
[1768304537504,1.08652532,3136.0,3135.0,1.08652532]
[1768304538102,1.08652532,3136.0,3134.7,0.00386492]
[1768304538304,1.08652532,3135.8,3134.9,1.08652532]
[1768304538807,0.1378926,3135.7,3134.8,1.08652532]
[1768304542213,1.08652532,3135.6,3134.8,1.08652532]
[1768304543708,0.1378926,3135.7,3134.9,1.08652532]
[1768304545215,1.08652532,3135.8,3134.9,1.08652532]
[1768304546317,1.08652532,3135.8,3134.7,0.00386492]
[1768304546318,1.08652532,3135.6,3134.7,0.00386492]
[1768304546504,1.08652532,3135.2,3134.7,0.00386492]
[1768304547007,1.08652532,3135.4,3134.7,0.00386492]
[1768304547608,1.22441792,3135.4,3134.7,0.00386492]
[1768304547808,1.22441792,3135.2,3134.7,0.00386492]
[1768304549316,0.1378926,3135.2,3134.7,0.00386492]
[1768304550710,1.22441792,3135.2,3134.3,1.08652532]
[1768304551618,1.22441792,3135.2,3134.3,1.08915825]
[1768304552421,1.22441792,3135.2,3134.3,0.00263293]
[1768304553319,1.08652532,3134.8,3134.3,0.00263293]
[1768304553516,0.0031074,3134.8,3134.1,1.08652532]